fUST/lending_fUST_20240902
["ID","MTS","AMOUNT","RATE_DAILY","PERIOD"]
[336947949,1725259850947,-502.77470919,0.00024931,2]
[336947950,1725259850956,-500.0,0.00024931,2]
[336947951,1725259850966,-500.0,0.00024931,2]
[336947952,1725259850977,-500.0,0.00024931,2]
[336947953,1725259850988,-500.0,0.00024931,2]
[336947954,1725259851000,-502.93525691,0.00024931,2]
[336947955,1725259851010,-500.0,0.00024931,2]
[336947956,1725259851021,-500.0,0.00024931,2]
[336947957,1725259851031,-500.0,0.00024931,2]
[336947958,1725259851042,-500.0,0.00024931,2]
[336947959,1725259851054,-500.0,0.00024931,2]
[336947960,1725259851064,-500.0,0.00024931,2]
[336947961,1725259851073,-500.0,0.00024931,2]
[336947962,1725259851082,-500.0,0.00024931,2]
[336947963,1725259851091,-500.0,0.00024931,2]
[336947964,1725259851100,-500.0,0.00024931,2]
[336947965,1725259851111,-500.0,0.00024931,2]
[336947966,1725259851123,-500.0,0.00024931,2]
[336947967,1725259851135,-500.0,0.00024931,2]
[336947968,1725259851147,-503.37539464,0.00024931,2]
[336947969,1725259851157,-500.0,0.00024931,2]
[336947970,1725259851167,-500.0,0.00024931,2]
[336947971,1725259851176,-500.0,0.00024931,2]
[336947972,1725259851185,-500.0,0.00024931,2]
[336947973,1725259851197,-500.0,0.00024931,2]
[336947974,1725259851208,-500.0,0.00024931,2]
[336947975,1725259851218,-500.0,0.00024931,2]
[336947976,1725259851229,-500.0,0.00024931,2]
[336947977,1725259851238,-506.96579072,0.00024931,2]
[336947978,1725259851248,-500.0,0.00024931,2]
[336947979,1725259851258,-500.0,0.00024931,2]
[336947980,1725259851269,-500.0,0.00024931,2]
[336947981,1725259851279,-508.0090939,0.00024931,2]
[336947982,1725259851291,-292.39798448,0.00024931,2]
[336947983,1725259851301,-500.0,0.00024931,2]
[336947984,1725259851316,-500.0,0.00024931,2]
[336947985,1725259851325,-500.0,0.00024931,2]
[336947986,1725259851336,-500.0,0.00024931,2]
[336947987,1725259851347,-500.0,0.00024931,2]
[336947988,1725259851358,-500.0,0.00024931,2]
[336947989,1725259851368,-500.0,0.00024931,2]
[336947990,1725259851379,-597.23,0.00024931,2]
[336947991,1725259851390,-500.0,0.00024931,2]
[336947992,1725259851401,-502.95579537,0.00024931,2]
[336947993,1725259851411,-500.0,0.00024931,2]
[336947994,1725259851421,-502.6324954,0.00024931,2]
[336947995,1725259851431,-500.0,0.00024931,2]
[336947996,1725259851440,-500.0,0.00024931,2]
[336947997,1725259851450,-521.05,0.00024931,2]
[336947998,1725259851461,-501.18459754,0.00024931,2]
[336947999,1725259851471,-500.0,0.00024931,2]
[336948000,1725259851482,-500.0,0.00024931,2]
[336948001,1725259851493,-500.0,0.00024931,2]
[336948002,1725259851502,-500.0,0.00024931,2]
[336948003,1725259851511,-500.0,0.00024931,2]
[336948004,1725259851521,-500.0,0.00024931,2]
[336948005,1725259851531,-500.0,0.00024931,2]
[336948006,1725259851541,-500.0,0.00024931,2]
[336948007,1725259851552,-500.0,0.00024931,2]
[336948008,1725259851562,-500.0,0.00024931,2]
[336948009,1725259851571,-760.82,0.00024931,2]
[336948010,1725259851582,-500.0,0.00024931,2]
[336948011,1725259851591,-500.0,0.00024931,2]
[336948012,1725259851601,-500.0,0.00024931,2]
[336948013,1725259851610,-500.0,0.00024931,2]
[336948014,1725259851620,-500.0,0.00024931,2]
[336948015,1725259851630,-500.0,0.00024931,2]
[336948016,1725259851642,-500.0,0.00024931,2]
[336948017,1725259851653,-598.41,0.00024931,2]
[336948018,1725259851663,-500.0,0.00024931,2]
[336948019,1725259851672,-500.0,0.00024931,2]
[336948020,1725259851681,-500.0,0.00024931,2]
[336948021,1725259851691,-500.0,0.00024931,2]
[336948022,1725259851700,-500.0,0.00024931,2]
[336948023,1725259851710,-641.92,0.00024931,2]
[336948024,1725259851719,-500.0,0.00024931,2]
[336948025,1725259851729,-348.79875662,0.00024931,2]
[336948026,1725259851739,-501.4467891,0.00024931,2]
[336948027,1725259851748,-500.0,0.00024931,2]
[336948028,1725259851757,-500.0,0.00024931,2]
[336948029,1725259851767,-500.0,0.00024931,2]
[336948030,1725259851779,-151.0,0.00024931,7]
[336948031,1725259851789,-500.0,0.00024931,2]
[336948032,1725259851799,-500.0,0.00024931,2]
[336948033,1725259851819,-500.0,0.00024931,2]
[336948034,1725259851829,-555.93,0.00024931,2]
[336948035,1725259851840,-500.0,0.00024931,2]
[336948036,1725259851849,-500.0,0.00024931,2]
[336948037,1725259851858,-500.0,0.00024931,2]
[336948038,1725259851868,-717.57,0.00024931,2]
[336948039,1725259851878,-500.0,0.00024931,2]
[336948040,1725259851888,-500.0,0.00024931,2]
[336948041,1725259851898,-500.0,0.00024931,2]
[336948042,1725259851908,-500.0,0.00024931,2]
[336948043,1725259851920,-500.0,0.00024931,2]
[336948044,1725259851929,-500.0,0.00024931,2]
[336948045,1725259851938,-500.0,0.00024931,2]
[336948046,1725259851949,-500.0,0.00024931,2]
[336948047,1725259851958,-500.0,0.00024931,2]
[336948048,1725259851968,-3060.85,0.00024931,2]
[336948049,1725259851977,-603.00000002,0.00024931,2]
[336948050,1725259851987,-542.54800923,0.00024931,2]
[336948051,1725259852000,-500.0,0.00024931,2]
[336948052,1725259852010,-500.0,0.00024931,2]
[336948053,1725259852021,-500.0,0.00024931,2]
[336948054,1725259852030,-500.0,0.00024931,2]
[336948055,1725259852040,-500.0,0.00024931,2]
[336948056,1725259852053,-502.05100841,0.00024931,2]
[336948057,1725259852064,-500.0,0.00024931,2]
[336948058,1725259852074,-500.0,0.00024931,2]
[336948059,1725259852084,-500.0,0.00024931,2]
[336948060,1725259852095,-500.0,0.00024931,2]
[336948061,1725259852107,-991.56,0.00024931,2]
[336948062,1725259852118,-500.0,0.00024931,2]
[336948063,1725259852128,-500.0,0.00024931,2]
[336948064,1725259852138,-500.0,0.00024931,2]
[336948065,1725259852148,-500.0,0.00024931,2]
[336948066,1725259852159,-500.0,0.00024931,2]
[336948067,1725259852169,-500.0,0.00024931,2]
[336948068,1725259852178,-500.0,0.00024931,2]
[336948069,1725259852188,-500.0,0.00024931,2]
[336948070,1725259852199,-500.0,0.00024931,2]
[336948071,1725259852210,-503.08585856,0.00024931,2]
[336948072,1725259852221,-500.0,0.00024931,2]
[336948073,1725259852232,-500.0,0.00024931,2]
[336948074,1725259852242,-500.0,0.00024931,2]
[336948075,1725259852255,-500.0,0.00024931,2]
[336948076,1725259852266,-500.0,0.00024931,2]
[336948077,1725259852276,-500.0,0.00024931,2]
[336948078,1725259852288,-500.0,0.00024931,2]
[336948079,1725259852298,-552.37,0.00024931,2]
[336948080,1725259852313,-500.0,0.00024931,2]
[336948081,1725259852323,-500.0,0.00024931,2]
[336948082,1725259852333,-500.0,0.00024931,2]
[336948083,1725259852343,-500.0,0.00024931,2]
[336948084,1725259852354,-500.0,0.00024931,2]
[336948085,1725259852363,-500.0,0.00024931,2]
[336948086,1725259852372,-500.0,0.00024931,2]
[336948087,1725259852384,-500.0,0.00024931,2]
[336948088,1725259852395,-500.0,0.00024931,2]
[336948089,1725259852404,-500.0,0.00024931,2]
[336948090,1725259852414,-500.0,0.00024931,2]
[336948091,1725259852423,-625.21062188,0.00024931,2]
[336948092,1725259852432,-500.0,0.00024931,2]
[336948093,1725259852441,-500.0,0.00024931,2]
[336948094,1725259852451,-500.0,0.00024931,2]
[336948095,1725259852462,-500.0,0.00024931,2]
[336948096,1725259852472,-500.0,0.00024931,2]
[336948097,1725259852483,-500.0,0.00024931,2]
[336948098,1725259852493,-500.0,0.00024931,2]
[336948099,1725259852502,-506.99,0.00024931,2]
[336948100,1725259852512,-500.0,0.00024931,2]
[336948101,1725259852521,-500.0,0.00024931,2]
[336948102,1725259852531,-500.0,0.00024931,2]
[336948103,1725259852541,-500.0,0.00024931,2]
[336948104,1725259852550,-500.0,0.00024931,2]
[336948105,1725259852560,-500.0,0.00024931,2]
[336948106,1725259852569,-500.0,0.00024931,2]
[336948107,1725259852579,-500.0,0.00024931,2]
[336948108,1725259852588,-500.0,0.00024931,2]
[336948109,1725259852598,-500.0,0.00024931,2]
[336948110,1725259852607,-500.0,0.00024931,2]
[336948111,1725259852616,-500.0,0.00024931,2]
[336948112,1725259852625,-506.05639336,0.00024931,2]
[336948113,1725259852634,-500.0,0.00024931,2]
[336948114,1725259852643,-500.0,0.00024931,2]
[336948115,1725259852652,-500.0,0.00024931,2]
[336948116,1725259852662,-500.0,0.00024931,2]
[336948117,1725259852671,-500.0,0.00024931,2]
[336948118,1725259852682,-500.0,0.00024931,2]
[336948119,1725259852693,-500.0,0.00024931,2]
[336948120,1725259852704,-500.0,0.00024931,2]
[336948121,1725259852715,-500.0,0.00024931,2]
[336948122,1725259852727,-567.6,0.00024931,2]
[336948123,1725259852738,-527.96210236,0.00024931,2]
[336948124,1725259852747,-500.0,0.00024931,2]
[336948125,1725259852757,-500.0,0.00024931,2]
[336948126,1725259852766,-500.0,0.00024931,2]
[336948127,1725259852776,-151.0,0.00024931,7]
[336948128,1725259852786,-151.0,0.00024931,7]
[336948129,1725259852795,-249.29684256,0.00024931,2]
[336948130,1725259852807,-827.3,0.00024931,2]
[336948131,1725259852818,-605.67749981,0.00024931,2]
[336948132,1725259852828,-501.5575265,0.00024931,2]
[336948133,1725259852839,-500.0,0.00024931,2]
[336948134,1725259852850,-500.0,0.00024931,2]
[336948135,1725259852862,-500.0,0.00024931,2]
[336948136,1725259852872,-500.0,0.00024931,2]
[336948137,1725259852983,-500.0,0.00024931,2]
[336948138,1725259852994,-500.0,0.00024931,2]
[336948139,1725259853004,-500.0,0.00024931,2]
[336948140,1725259853014,-500.0,0.00024931,2]
[336948141,1725259853024,-500.0,0.00024931,2]
[336948142,1725259853033,-500.0,0.00024931,2]
[336948143,1725259853042,-500.0,0.00024931,2]
[336948144,1725259853052,-500.0,0.00024931,2]
[336948145,1725259853061,-500.0,0.00024931,2]
[336948146,1725259853071,-500.0,0.00024931,2]
[336948147,1725259853080,-500.0,0.00024931,2]
[336948148,1725259853089,-500.0,0.00024931,2]
[336948149,1725259853098,-500.0,0.00024931,2]
[336948150,1725259853107,-500.0,0.00024931,2]
[336948151,1725259853116,-500.0,0.00024931,2]
[336948152,1725259853126,-503.96917444,0.00024931,2]
[336948153,1725259853135,-1085.9,0.00024931,2]
[336948154,1725259853145,-500.0,0.00024931,2]
[336948155,1725259853155,-500.0,0.00024931,2]
[336948156,1725259853164,-708.4,0.00024931,2]
[336948157,1725259853173,-500.0,0.00024931,2]
[336948158,1725259853182,-500.0,0.00024931,2]
[336948159,1725259853191,-763.91,0.00024931,2]
[336948160,1725259853200,-500.0,0.00024931,2]
[336948161,1725259853210,-500.0,0.00024931,2]
[336948162,1725259853220,-500.0,0.00024931,2]
[336948163,1725259853230,-500.0,0.00024931,2]
[336948164,1725259853240,-500.0,0.00024931,2]
[336948165,1725259853249,-500.0,0.00024931,2]
[336948166,1725259853259,-500.0,0.00024931,2]
[336948167,1725259853268,-500.0,0.00024931,2]
[336948168,1725259853277,-500.0,0.00024931,2]
[336948169,1725259853287,-500.0,0.00024931,2]
[336948170,1725259853296,-764.35,0.00024931,2]
[336948171,1725259853310,-500.0,0.00024931,2]
[336948172,1725259853320,-500.0,0.00024931,2]
[336948173,1725259853330,-500.0,0.00024931,2]
[336948174,1725259853339,-500.0,0.00024931,2]
[336948175,1725259853351,-500.0,0.00024931,2]
[336948176,1725259853360,-500.0,0.00024931,2]
[336948177,1725259853369,-500.0,0.00024931,2]
[336948178,1725259853379,-500.0,0.00024931,2]
[336948179,1725259853390,-500.0,0.00024931,2]
[336948180,1725259853400,-500.0,0.00024931,2]
[336948181,1725259853410,-559.60149088,0.00024931,2]
[336948182,1725259853420,-688.45,0.00024931,2]
[336948183,1725259853429,-500.0,0.00024931,2]
[336948184,1725259853439,-500.0,0.00024931,2]
[336948185,1725259853449,-1820.02,0.00024931,2]
[336948186,1725259853458,-505.27028494,0.00024931,2]
[336948187,1725259853467,-500.0,0.00024931,2]
[336948188,1725259853477,-689.91,0.00024931,2]
[336948189,1725259853487,-500.0,0.00024931,2]
[336948190,1725259853496,-500.0,0.00024931,2]
[336948191,1725259853505,-508.24120198,0.00024931,2]
[336948192,1725259853515,-500.0,0.00024931,2]
[336948193,1725259853523,-1609.12,0.00024931,2]
[336948194,1725259853533,-500.0,0.00024931,2]
[336948195,1725259853542,-500.0,0.00024931,2]
[336948196,1725259853551,-523.39865041,0.00024931,2]
[336948197,1725259853560,-500.0,0.00024931,2]
[336948198,1725259853570,-500.0,0.00024931,2]
[336948199,1725259853581,-1013.85,0.00024931,2]
[336948200,1725259853590,-500.0,0.00024931,2]
[336948201,1725259853599,-898.67,0.00024931,2]
[336948202,1725259853609,-599.19,0.00024931,2]
[336948203,1725259853618,-500.0,0.00024931,2]
[336948204,1725259853627,-500.0,0.00024931,2]
[336948205,1725259853637,-1465.09,0.00024931,2]
[336948206,1725259853647,-500.0,0.00024931,2]
[336948207,1725259853657,-500.0,0.00024931,2]
[336948208,1725259853666,-500.0,0.00024931,2]
[336948209,1725259853676,-500.0,0.00024931,2]
[336948210,1725259853687,-500.0,0.00024931,2]
[336948211,1725259853697,-2111.93,0.00024931,2]
[336948212,1725259853708,-500.0,0.00024931,2]
[336948213,1725259853720,-505.56234461,0.00024931,2]
[336948214,1725259853730,-516.62439597,0.00024931,2]
[336948215,1725259853740,-500.0,0.00024931,2]
[336948216,1725259853751,-500.0,0.00024931,2]
[336948217,1725259853762,-517.06,0.00024931,2]
[336948218,1725259853772,-500.0,0.00024931,2]
[336948219,1725259853781,-395.57423842,0.00024931,2]
[336948220,1725259853791,-500.0,0.00024931,2]
[336948221,1725259853802,-501.53643517,0.00024931,2]
[336948222,1725259853813,-500.0,0.00024931,2]
[336948223,1725259853823,-500.0,0.00024931,2]
[336948224,1725259853833,-500.0,0.00024931,2]
[336948225,1725259853845,-500.0,0.00024931,2]
[336948226,1725259853855,-496.45500936,0.00024931,2]
[336948227,1725259853864,-500.0,0.00024931,2]
[336948228,1725259853873,-10347.63,0.00024931,2]
[336948229,1725259853883,-500.0,0.00024931,2]
[336948230,1725259853893,-1048.32,0.00024931,2]
[336948231,1725259853903,-504.42841578,0.00024931,2]
[336948232,1725259853914,-500.0,0.00024931,2]
[336948233,1725259853926,-1741.3,0.00024931,2]
[336948234,1725259853937,-500.0,0.00024931,2]
[336948235,1725259853947,-500.0,0.00024931,2]
[336948236,1725259853956,-500.0,0.00024931,2]
[336948237,1725259853965,-500.0,0.00024931,2]
[336948238,1725259853974,-1506.41,0.00024931,2]
[336948239,1725259853983,-1315.25,0.00024931,2]
[336948240,1725259853994,-500.0,0.00024931,2]
[336948241,1725259854003,-500.0,0.00024931,2]
[336948242,1725259854012,-500.0,0.00024931,2]
[336948243,1725259854021,-500.0,0.00024931,2]
[336948244,1725259854030,-500.0,0.00024931,2]
[336948245,1725259854040,-500.0,0.00024931,2]
[336948246,1725259854049,-500.0,0.00024931,2]
[336948247,1725259854058,-500.0,0.00024931,2]
[336948248,1725259854067,-500.0,0.00024931,2]
[336948249,1725259854076,-504.30642844,0.00024931,2]
[336948250,1725259854085,-500.0,0.00024931,2]
[336948251,1725259854094,-200.0,0.00024931,2]
[336948252,1725259854104,-1120.16,0.00024931,2]
[336948253,1725259854116,-500.0,0.00024931,2]
[336948254,1725259854127,-500.0,0.00024931,2]
[336948255,1725259854138,-1558.02,0.00024931,2]
[336948256,1725259854149,-500.0,0.00024931,2]
[336948257,1725259854160,-500.0,0.00024931,2]
[336948258,1725259854170,-500.0,0.00024931,2]
[336948259,1725259854180,-500.0,0.00024931,2]
[336948260,1725259854190,-500.0,0.00024931,2]
[336948261,1725259854200,-500.0,0.00024931,2]
[336948262,1725259854211,-500.0,0.00024931,2]
[336948263,1725259854221,-500.0,0.00024931,2]
[336948264,1725259854232,-500.0,0.00024931,2]
[336948265,1725259854242,-500.0,0.00024931,2]
[336948266,1725259854253,-1371.33,0.00024931,2]
[336948267,1725259854262,-500.0,0.00024931,2]
[336948268,1725259854272,-1001.57,0.00024931,2]
[336948269,1725259854281,-582.5826632,0.00024931,2]
[336948270,1725259854290,-181.24101756,0.00024931,2]
[336948271,1725259854300,-500.0,0.00024931,2]
[336948272,1725259854312,-500.0,0.00024931,2]
[336948273,1725259854321,-500.0,0.00024931,2]
[336948274,1725259854330,-500.0,0.00024931,2]
[336948275,1725259854341,-500.0,0.00024931,2]
[336948276,1725259854351,-500.0,0.00024931,2]
[336948277,1725259854360,-500.0,0.00024931,2]
[336948278,1725259854369,-2072.66,0.00024931,2]
[336948279,1725259854380,-500.0,0.00024931,2]
[336948280,1725259854390,-500.0,0.00024931,2]
[336948281,1725259854399,-500.0,0.00024931,2]
[336948282,1725259854408,-500.0,0.00024931,2]
[336948283,1725259854419,-1079.06,0.00024931,2]
[336948284,1725259854428,-561.75,0.00024931,2]
[336948285,1725259854438,-1256.22,0.00024931,2]
[336948286,1725259854448,-854.59,0.00024931,2]
[336948287,1725259854458,-500.0,0.00024931,2]
[336948288,1725259854467,-500.0,0.00024931,2]
[336948289,1725259854477,-500.0,0.00024931,2]
[336948290,1725259854486,-1193.68,0.00024931,2]
[336948291,1725259854496,-1479.84,0.00024931,2]
[336948292,1725259854506,-501.80702055,0.00024931,2]
[336948293,1725259854516,-573.45,0.00024931,2]
[336948294,1725259854525,-500.0,0.00024931,2]
[336948295,1725259854535,-1768.84,0.00024931,2]
[336948296,1725259854544,-500.0,0.00024931,2]
[336948297,1725259854555,-500.0,0.00024931,2]
[336948298,1725259854565,-500.0,0.00024931,2]
[336948299,1725259854574,-500.0,0.00024931,2]
[336948300,1725259854584,-500.0,0.00024931,2]
[336948301,1725259854593,-570.08439855,0.00024931,2]
[336948302,1725259854603,-500.0,0.00024931,2]
[336948303,1725259854613,-500.0,0.00024931,2]
[336948304,1725259854624,-503.45385978,0.00024931,2]
[336948305,1725259854635,-500.0,0.00024931,2]
[336948306,1725259854646,-500.0,0.00024931,2]
[336948307,1725259854655,-500.0,0.00024931,2]
[336948308,1725259854665,-500.0,0.00024931,2]
[336948309,1725259854675,-500.0,0.00024931,2]
[336948310,1725259854685,-895.35,0.00024931,2]
[336948311,1725259854694,-842.29,0.00024931,2]
[336948312,1725259854703,-500.0,0.00024931,2]
[336948313,1725259854712,-500.0,0.00024931,2]
[336948314,1725259854721,-4061.42,0.00024931,2]
[336948315,1725259854731,-500.0,0.00024931,2]
[336948316,1725259854741,-500.0,0.00024931,2]
[336948317,1725259854751,-531.52,0.00024931,2]
[336948318,1725259854761,-586.59,0.00024931,2]
[336948319,1725259854771,-882.61,0.00024931,2]
[336948320,1725259854781,-500.0,0.00024931,2]
[336948321,1725259854792,-500.0,0.00024931,2]
[336948322,1725259854802,-500.0,0.00024931,2]
[336948323,1725259854812,-500.0,0.00024931,2]
[336948324,1725259854822,-500.0,0.00024931,2]
[336948325,1725259854833,-526.57,0.00024931,2]
[336948326,1725259854843,-1090.78,0.00024931,2]
[336948327,1725259854853,-500.0,0.00024931,2]
[336948328,1725259854864,-1305.18,0.00024931,2]
[336948329,1725259854873,-500.0,0.00024931,2]
[336948330,1725259854883,-500.0,0.00024931,2]
[336948331,1725259854893,-1244.01,0.00024931,2]
[336948332,1725259854903,-502.81969004,0.00024931,2]
[336948333,1725259854913,-441.04344747,0.00024931,2]
[336948334,1725259854923,-500.0,0.00024931,2]
[336948335,1725259854932,-500.0,0.00024931,2]
[336948336,1725259854941,-768.52,0.00024931,2]
[336948337,1725259854950,-509.6084453,0.00024931,2]
[336948338,1725259854960,-500.0,0.00024931,2]
[336948339,1725259855072,-500.0,0.00024931,2]
[336948340,1725259855084,-783.87,0.00024931,2]
[336948341,1725259855095,-500.0,0.00024931,2]
[336948342,1725259855106,-500.0,0.00024931,2]
[336948343,1725259855116,-1689.45,0.00024931,2]
[336948344,1725259855126,-500.0,0.00024931,2]
[336948345,1725259855137,-1390.74,0.00024931,2]
[336948346,1725259855147,-500.0,0.00024931,2]
[336948347,1725259855157,-1076.17,0.00024931,2]
[336948348,1725259855167,-261.52864841,0.00024931,2]
[336948349,1725259855176,-500.0,0.00024931,2]
[336948350,1725259855185,-500.0,0.00024931,2]
[336948351,1725259855195,-500.0,0.00024931,2]
[336948352,1725259855204,-500.0,0.00024931,2]
[336948353,1725259855213,-500.0,0.00024931,2]
[336948354,1725259855222,-500.0,0.00024931,2]
[336948355,1725259855232,-500.0,0.00024931,2]
[336948356,1725259855242,-1168.25,0.00024931,2]
[336948357,1725259855252,-6482.63,0.00024931,2]
[336948358,1725259855262,-402.5374694,0.00024931,2]
[336948359,1725259855272,-712.31,0.00024931,2]
[336948360,1725259855281,-500.0,0.00024931,2]
[336948361,1725259855291,-500.0,0.00024931,2]
[336948362,1725259855301,-500.0,0.00024931,2]
[336948363,1725259855317,-500.0,0.00024931,2]
[336948364,1725259855327,-500.0,0.00024931,2]
[336948365,1725259855337,-500.0,0.00024931,2]
[336948366,1725259855347,-500.0,0.00024931,2]
[336948367,1725259855356,-500.0,0.00024931,2]
[336948368,1725259855366,-1255.46,0.00024931,2]
[336948369,1725259855376,-500.0,0.00024931,2]
[336948370,1725259855389,-650.19,0.00024931,2]
[336948371,1725259855398,-1413.44,0.00024931,2]
[336948372,1725259855408,-750.84,0.00024931,2]
[336948373,1725259855417,-500.0,0.00024931,2]
[336948374,1725259855427,-500.0,0.00024931,2]
[336948375,1725259855438,-502.38135663,0.00024931,2]
[336948376,1725259855450,-1519.35,0.00024931,2]
[336948377,1725259855461,-566.86701025,0.00024931,2]
[336948378,1725259855470,-500.0,0.00024931,2]
[336948379,1725259855480,-500.0,0.00024931,2]
[336948380,1725259855490,-500.0,0.00024931,2]
[336948381,1725259855499,-151.0,0.00024931,7]
[336948382,1725259855507,-151.0,0.00024931,7]
[336948383,1725259855516,-1085.39,0.00024931,2]
[336948384,1725259855525,-500.0,0.00024931,2]
[336948385,1725259855535,-500.0,0.00024931,2]
[336948386,1725259855545,-500.0,0.00024931,2]
[336948387,1725259855556,-500.0,0.00024931,2]
[336948388,1725259855566,-1126.44,0.00024931,2]
[336948389,1725259855575,-622.25,0.00024931,2]
[336948390,1725259855584,-500.0,0.00024931,2]
[336948391,1725259855595,-1307.48,0.00024931,2]
[336948392,1725259855604,-988.41,0.00024931,2]
[336948393,1725259855613,-500.0,0.00024931,2]
[336948394,1725259855622,-651.97,0.00024931,2]
[336948395,1725259855631,-500.0,0.00024931,2]
[336948396,1725259855640,-500.0,0.00024931,2]
[336948397,1725259855650,-2445.14,0.00024931,2]
[336948398,1725259855659,-2933.59,0.00024931,2]
[336948399,1725259855668,-501.57384797,0.00024931,2]
[336948400,1725259855677,-7008.83,0.00024931,2]
[336948401,1725259855686,-1058.21,0.00024931,2]
[336948402,1725259855695,-500.0,0.00024931,2]
[336948403,1725259855704,-500.0,0.00024931,2]
[336948404,1725259855714,-500.0,0.00024931,2]
[336948405,1725259855723,-1020.09,0.00024931,2]
[336948406,1725259855732,-966.6,0.00024931,2]
[336948407,1725259855741,-500.0,0.00024931,2]
[336948408,1725259855750,-500.0,0.00024931,2]
[336948409,1725259855759,-1006.69,0.00024931,2]
[336948410,1725259855768,-1631.02,0.00024931,2]
[336948411,1725259855777,-355.62801268,0.00024931,2]
[336948412,1725259855786,-500.0,0.00024931,2]
[336948413,1725259855795,-503.21397657,0.00024931,2]
[336948414,1725259855806,-500.0,0.00024931,2]
[336948415,1725259855815,-500.0,0.00024931,2]
[336948416,1725259855824,-500.0,0.00024931,2]
[336948417,1725259855833,-1096.12,0.00024931,2]
[336948418,1725259855842,-500.0,0.00024931,2]
[336948419,1725259855850,-500.0,0.00024931,2]
[336948420,1725259855860,-500.0,0.00024931,2]
[336948421,1725259855869,-1212.67,0.00024931,2]
[336948422,1725259855878,-500.0,0.00024931,2]
[336948423,1725259855887,-500.0,0.00024931,2]
[336948424,1725259855895,-500.0,0.00024931,2]
[336948425,1725259855904,-500.0,0.00024931,2]
[336948426,1725259855914,-500.0,0.00024931,2]
[336948427,1725259855924,-500.0,0.00024931,2]
[336948428,1725259855933,-500.0,0.00024931,2]
[336948429,1725259855942,-500.0,0.00024931,2]
[336948430,1725259855951,-159.0,0.00024932,2]
[336948431,1725259855960,-543.6,0.00024932,2]
[336948432,1725259855969,-508.220424,0.00024964,2]
[336948433,1725259855980,-658.186831,0.00024964,2]
[336948434,1725259855990,-330.420969,0.00024964,2]
[336948435,1725259855999,-182.750089,0.00024964,2]
[336948436,1725259856009,-197.5574,0.00024964,2]
[336948437,1725259856018,-196.78467,0.00024964,2]
[336948438,1725259856026,-1148.954037,0.00024964,2]
[336948439,1725259856035,-193.430815,0.00024964,2]
[336948440,1725259856045,-1294.868956,0.00024964,2]
[336948441,1725259856057,-151.0,0.00024964,7]
[336948442,1725259856066,-500.0,0.00024973,2]
[336948443,1725259856078,-500.0,0.00024973,2]
[336948444,1725259856088,-505.43,0.00024999,2]
[336948445,1725259856098,-2000.0,0.00025,2]
[336948446,1725259856107,-2000.0,0.00025,2]
[336948447,1725259856116,-2000.0,0.00025,2]
[336948448,1725259856125,-2000.0,0.00025,2]